[Event "Norwegian Championship 2022"]
[Site "Kongsvinger, Norway"]
[Date "2022.07.09"]
[Round "2"]
[White "Østmoe, Geir Sune Tallaksen"]
[Black "Agdestein, Simen"]
[Result "1/2-1/2"]
[Board "2"]
[TimeControl "40/5400+30:1800+30"]
[WhiteTitle "IM"]
[BlackTitle "GM"]
[WhiteFideId "1502778"]
[BlackFideId "1500015"]
[WhiteElo "2483"]
[BlackElo "2559"]

1. d4 {[%clk 01:30:51]} {[%emt 00:00:08]} e6 {[%clk 01:30:57]} {[%emt
00:00:04]} 2. c4 {[%clk 01:31:03]} {[%emt 00:00:19]} f5 {[%clk 01:31:01]}
{[%emt 00:00:25]} 3. Nf3 {[%clk 01:31:08]} {[%emt 00:00:25]} Nf6 {[%clk
01:31:17]} {[%emt 00:00:14]} 4. g3 {[%clk 01:31:13]} {[%emt 00:00:25]} d5
{[%clk 01:31:18]} {[%emt 00:00:30]} 5. Bg2 {[%clk 01:31:14]} {[%emt 00:00:29]}
Bd6 {[%clk 01:30:08]} {[%emt 00:01:39]} 6. O-O {[%clk 01:30:41]} {[%emt
00:01:04]} O-O {[%clk 01:30:00]} {[%emt 00:00:39]} 7. Nc3 {[%clk 01:30:01]}
{[%emt 00:01:10]} c6 {[%clk 01:27:31]} {[%emt 00:02:59]} 8. Qc2 {[%clk
01:29:49]} {[%emt 00:00:42]} Ne4 {[%clk 01:26:22]} {[%emt 00:01:38]} 9. Rb1
{[%clk 01:29:00]} {[%emt 00:01:19]} a5 {[%clk 01:26:40]} {[%emt 00:00:12]} 10.
a3 {[%clk 01:26:45]} {[%emt 00:02:46]} Nd7 {[%clk 01:25:28]} {[%emt 00:01:42]}
11. b4 {[%clk 01:23:17]} {[%emt 00:03:58]} axb4 {[%clk 01:24:49]} {[%emt
00:01:09]} 12. axb4 {[%clk 01:23:42]} {[%emt 00:00:04]} Nxc3 {[%clk 01:23:25]}
{[%emt 00:01:52]} 13. Qxc3 {[%clk 01:23:49]} {[%emt 00:00:24]} dxc4 {[%clk
01:23:49]} {[%emt 00:00:06]} 14. Qxc4 {[%clk 01:20:40]} {[%emt 00:03:40]} Nb6
{[%clk 01:24:13]} {[%emt 00:00:05]} 15. Qc2 {[%clk 01:09:59]} {[%emt 00:11:11]}
Nd5 {[%clk 01:22:43]} {[%emt 00:02:01]} 16. Bd2 {[%clk 01:09:39]} {[%emt
00:00:50]} Qe7 {[%clk 01:20:05]} {[%emt 00:03:08]} 17. b5 {[%clk 01:05:40]}
{[%emt 00:04:29]} Bd7 {[%clk 01:18:56]} {[%emt 00:01:39]} 18. Ne5 {[%clk
00:56:39]} {[%emt 00:09:31]} Bxe5 {[%clk 01:01:38]} {[%emt 00:17:47]} 19. dxe5
{[%clk 00:57:04]} {[%emt 00:00:06]} Rfc8 {[%clk 01:01:24]} {[%emt 00:00:44]} 20.
b6 {[%clk 00:48:39]} {[%emt 00:08:55]} Be8 {[%clk 00:57:00]} {[%emt 00:04:53]}
21. e4 {[%clk 00:45:39]} {[%emt 00:03:29]} fxe4 {[%clk 00:57:20]} {[%emt
00:00:10]} 22. Bxe4 {[%clk 00:46:04]} {[%emt 00:00:05]} Bg6 {[%clk 00:54:05]}
{[%emt 00:03:45]} 23. Bxg6 {[%clk 00:44:35]} {[%emt 00:02:00]} hxg6 {[%clk
00:54:32]} {[%emt 00:00:03]} 24. Qxg6 {[%clk 00:41:49]} {[%emt 00:03:16]} c5
{[%clk 00:52:54]} {[%emt 00:02:08]} 25. Bh6 {[%clk 00:34:00]} {[%emt 00:08:18]}
Qf7 {[%clk 00:47:41]} {[%emt 00:05:43]} 26. Qg4 {[%clk 00:34:04]} {[%emt
00:00:26]} Rc6 {[%clk 00:41:01]} {[%emt 00:07:11]} 27. Rb3 {[%clk 00:30:02]}
{[%emt 00:04:32]} Kh7 {[%clk 00:28:36]} {[%emt 00:12:55]} 28. Rf3 {[%clk
00:28:52]} {[%emt 00:01:41]} Qg6 {[%clk 00:23:54]} {[%emt 00:05:11]} 29. Bg5
{[%clk 00:27:26]} {[%emt 00:01:55]} Rxb6 {[%clk 00:23:09]} {[%emt 00:01:16]} 30.
Rc1 {[%clk 00:25:44]} {[%emt 00:02:12]} Rb4 {[%clk 00:12:59]} {[%emt 00:10:40]}
31. Qh3+ {[%clk 00:22:54]} {[%emt 00:03:20]} Kg8 {[%clk 00:13:00]} {[%emt
00:00:29]} 32. Rxc5 {[%clk 00:21:34]} {[%emt 00:01:51]} Re4 {[%clk 00:12:51]}
{[%emt 00:00:38]} 33. Bd2 {[%clk 00:07:25]} {[%emt 00:14:38]} Rxe5 {[%clk
00:13:11]} {[%emt 00:00:11]} 34. Rc4 {[%clk 00:07:31]} {[%emt 00:00:25]} Re4
{[%clk 00:10:19]} {[%emt 00:03:21]} 35. Rc1 {[%clk 00:05:43]} {[%emt 00:02:18]}
Re2 {[%clk 00:08:05]} {[%emt 00:02:43]} 36. Bf4 {[%clk 00:03:15]} {[%emt
00:02:59]} Rf8 {[%clk 00:04:10]} {[%emt 00:04:24]} 37. Qg2 {[%clk 00:02:54]}
{[%emt 00:00:51]} Qe4 {[%clk 00:01:07]} {[%emt 00:03:33]} 38. Rb3 {[%clk
00:02:18]} {[%emt 00:01:07]} Nxf4 {[%clk 00:01:00]} {[%emt 00:00:37]} 39. Qxe4
{[%clk 00:01:17]} {[%emt 00:01:30]} Nh3+ {[%clk 00:00:43]} {[%emt 00:00:47]} 40.
Kg2 {[%clk 00:31:35]} {[%emt 00:00:13]} Rfxf2+ {[%clk 00:30:49]} {[%emt
00:00:25]} 41. Kxh3 {[%clk 00:32:00]} {[%emt 00:00:04]} Rxh2+ {[%clk 00:31:07]}
{[%emt 00:00:13]} 42. Kg4 {[%clk 00:32:26]} {[%emt 00:00:04]} Rxe4+ {[%clk
00:31:31]} {[%emt 00:00:06]} 43. Kf3 {[%clk 00:32:18]} {[%emt 00:00:37]} Ree2
{[%clk 00:24:32]} {[%emt 00:07:29]} 44. Rxb7 {[%clk 00:31:21]} {[%emt
00:01:27]} Ref2+ {[%clk 00:24:26]} {[%emt 00:00:36]} 45. Kg4 {[%clk 00:28:15]}
{[%emt 00:03:37]} Rh6 {[%clk 00:23:15]} {[%emt 00:01:41]} 46. Rc5 {[%clk
00:26:32]} {[%emt 00:02:13]} Rg6+ {[%clk 00:16:53]} {[%emt 00:06:51]} 47. Rg5
{[%clk 00:26:29]} {[%emt 00:00:33]} Kh7 {[%clk 00:16:16]} {[%emt 00:01:07]} 48.
Re7 {[%clk 00:23:30]} {[%emt 00:03:29]} Re2 {[%clk 00:15:40]} {[%emt 00:01:07]}
49. Kh5 {[%clk 00:22:39]} {[%emt 00:01:20]} Rh2+ {[%clk 00:16:03]} {[%emt
00:00:07]} 50. Kg4 {[%clk 00:23:05]} {[%emt 00:00:04]} Re2 {[%clk 00:16:07]}
{[%emt 00:00:26]} 51. Kh5 {[%clk 00:23:28]} {[%emt 00:00:07]} Rxg5+ {[%clk
00:16:24]} {[%emt 00:00:13]} 52. Kxg5 {[%clk 00:23:53]} {[%emt 00:00:05]} Re5+
{[%clk 00:16:32]} {[%emt 00:00:22]} 53. Kf4 {[%clk 00:23:20]} {[%emt 00:01:02]}
Rf5+ {[%clk 00:16:16]} {[%emt 00:00:46]} 54. Ke4 {[%clk 00:16:07]} {[%emt
00:07:42]} Rf6 {[%clk 00:16:36]} {[%emt 00:00:10]} 55. Ke5 {[%clk 00:16:19]}
{[%emt 00:00:18]} Rf3 {[%clk 00:16:13]} {[%emt 00:00:52]} 56. Rxe6 {[%clk
00:15:45]} {[%emt 00:01:05]} Rxg3 {[%clk 00:16:25]} {[%emt 00:00:18]} 57. Kf4
{[%clk 00:16:03]} {[%emt 00:00:11]} Rg1 {[%clk 00:16:44]} {[%emt 00:00:10]} 58.
Kf3 {[%clk 00:15:28]} {[%emt 00:01:05]} g6 {[%clk 00:16:37]} {[%emt 00:00:38]}
59. Re5 {[%clk 00:15:27]} {[%emt 00:00:31]} Kh6 {[%clk 00:17:01]} {[%emt
00:00:06]} 60. Kf2 {[%clk 00:15:46]} {[%emt 00:00:10]} 1/2-1/2

[Event "Norwegian Championship 2022"]
[Site "Kongsvinger, Norway"]
[Date "2022.07.09"]
[Round "2"]
[White "Elsness, Frode"]
[Black "Hauge, Lars Oskar"]
[Result "0-1"]
[Board "3"]
[TimeControl "40/5400+30:1800+30"]
[WhiteTitle "IM"]
[BlackTitle "GM"]
[WhiteFideId "1501100"]
[BlackFideId "1509276"]
[WhiteElo "2464"]
[BlackElo "2526"]

1. e4 {[%clk 01:30:58]} e5 {[%clk 01:30:50]} {[%emt 00:00:11]} 2. Nf3 {[%clk
01:31:23]} {[%emt 00:00:05]} Nc6 {[%clk 01:31:14]} {[%emt 00:00:06]} 3. Bc4
{[%clk 01:31:47]} {[%emt 00:00:06]} Nf6 {[%clk 01:31:36]} {[%emt 00:00:08]} 4.
d3 {[%clk 01:32:11]} {[%emt 00:00:05]} Bc5 {[%clk 01:29:45]} {[%emt 00:02:20]}
5. Bg5 {[%clk 01:31:42]} {[%emt 00:00:59]} h6 {[%clk 01:29:54]} {[%emt
00:00:22]} 6. Bh4 {[%clk 01:32:09]} {[%emt 00:00:03]} Be7 {[%clk 01:29:32]}
{[%emt 00:00:52]} 7. Nc3 {[%clk 01:25:18]} {[%emt 00:07:20]} d6 {[%clk
01:25:13]} {[%emt 00:04:50]} 8. Bxf6 {[%clk 01:24:05]} {[%emt 00:01:43]} Bxf6
{[%clk 01:24:52]} {[%emt 00:00:51]} 9. Nd5 {[%clk 01:23:51]} {[%emt 00:00:44]}
g6 {[%clk 01:15:52]} {[%emt 00:09:30]} 10. a4 {[%clk 01:22:20]} {[%emt
00:02:01]} Bg7 {[%clk 01:12:22]} {[%emt 00:04:00]} 11. h4 {[%clk 01:16:42]}
{[%emt 00:06:07]} Ne7 {[%clk 01:05:37]} {[%emt 00:07:16]} 12. Qd2 {[%clk
01:06:27]} {[%emt 00:10:44]} Nxd5 {[%clk 00:54:32]} {[%emt 00:11:36]} 13. Bxd5
{[%clk 01:06:30]} {[%emt 00:00:27]} c6 {[%clk 00:49:55]} {[%emt 00:05:07]} 14.
Bb3 {[%clk 01:06:50]} {[%emt 00:00:10]} O-O {[%clk 00:45:46]} {[%emt 00:04:38]}
15. h5 {[%clk 00:50:05]} {[%emt 00:17:14]} g5 {[%clk 00:45:44]} {[%emt
00:00:32]} 16. Nh2 {[%clk 00:48:46]} {[%emt 00:01:49]} d5 {[%clk 00:45:36]}
{[%emt 00:00:39]} 17. g4 {[%clk 00:47:00]} {[%emt 00:02:15]} Be6 {[%clk
00:45:50]} {[%emt 00:00:16]} 18. Rg1 {[%clk 00:46:51]} {[%emt 00:00:39]} Qb6
{[%clk 00:44:02]} {[%emt 00:02:19]} 19. exd5 {[%clk 00:37:28]} {[%emt
00:09:53]} Bxd5 {[%clk 00:40:47]} {[%emt 00:03:44]} 20. a5 {[%clk 00:32:03]}
{[%emt 00:05:55]} Qc7 {[%clk 00:37:33]} {[%emt 00:03:44]} 21. Nf1 {[%clk
00:26:09]} {[%emt 00:06:24]} Bxb3 {[%clk 00:31:11]} {[%emt 00:06:52]} 22. cxb3
{[%clk 00:26:38]} {[%emt 00:00:02]} Rad8 {[%clk 00:31:28]} {[%emt 00:00:13]} 23.
Ra4 {[%clk 00:25:02]} {[%emt 00:02:06]} Qd7 {[%clk 00:21:48]} {[%emt 00:10:09]}
24. Rg3 {[%clk 00:19:43]} {[%emt 00:05:47]} f5 {[%clk 00:21:55]} {[%emt
00:00:25]} 25. gxf5 {[%clk 00:20:06]} {[%emt 00:00:07]} Rxf5 {[%clk 00:21:51]}
{[%emt 00:00:34]} 26. Re3 {[%clk 00:18:53]} {[%emt 00:01:42]} Rf4 {[%clk
00:20:39]} {[%emt 00:01:42]} 27. Rae4 {[%clk 00:17:17]} {[%emt 00:02:05]} Qf7
{[%clk 00:20:22]} {[%emt 00:00:48]} 28. Qc2 {[%clk 00:14:52]} {[%emt 00:02:55]}
Qxh5 {[%clk 00:17:24]} {[%emt 00:03:29]} 29. a6 {[%clk 00:15:15]} {[%emt
00:00:07]} Qf7 {[%clk 00:15:18]} {[%emt 00:02:35]} 30. axb7 {[%clk 00:13:49]}
{[%emt 00:01:56]} Qxb7 {[%clk 00:15:36]} {[%emt 00:00:12]} 31. Nd2 {[%clk
00:13:50]} {[%emt 00:00:29]} Qf7 {[%clk 00:15:47]} {[%emt 00:00:19]} 32. Nc4
{[%clk 00:10:47]} {[%emt 00:03:34]} Qh5 {[%clk 00:15:01]} {[%emt 00:01:15]} 33.
Qe2 {[%clk 00:07:27]} {[%emt 00:03:49]} Qxe2+ {[%clk 00:06:55]} {[%emt
00:08:36]} 34. Kxe2 {[%clk 00:07:55]} {[%emt 00:00:02]} Rxe4 {[%clk 00:05:22]}
{[%emt 00:02:04]} 35. Rxe4 {[%clk 00:08:00]} {[%emt 00:00:24]} Kf7 {[%clk
00:05:35]} {[%emt 00:00:17]} 36. Nxe5+ {[%clk 00:07:29]} {[%emt 00:01:01]} Bxe5
{[%clk 00:05:28]} {[%emt 00:00:37]} 37. Rxe5 {[%clk 00:07:56]} {[%emt
00:00:03]} Re8 {[%clk 00:05:43]} {[%emt 00:00:15]} 38. Re3 {[%clk 00:05:54]}
{[%emt 00:02:32]} Rxe3+ {[%clk 00:05:49]} {[%emt 00:00:25]} 39. fxe3 {[%clk
00:06:20]} {[%emt 00:00:04]} c5 {[%clk 00:05:14]} {[%emt 00:01:05]} 40. Kf3
{[%clk 00:33:06]} {[%emt 00:03:44]} h5 {[%clk 00:34:52]} {[%emt 00:00:52]} 41.
Ke4 {[%clk 00:26:47]} {[%emt 00:06:48]} h4 {[%clk 00:32:55]} {[%emt 00:02:28]}
0-1

[Event "Norwegian Championship 2022"]
[Site "Kongsvinger, Norway"]
[Date "2022.07.09"]
[Round "2"]
[White "Tallaksen, Levi André"]
[Black "Djurhuus, Rune"]
[Result "0-1"]
[Board "4"]
[TimeControl "40/5400+30:1800+30"]
[WhiteTitle "FM"]
[BlackTitle "GM"]
[WhiteFideId "1505785"]
[BlackFideId "1500082"]
[WhiteElo "2341"]
[BlackElo "2407"]

1. d4 {[%clk 01:30:55]} {[%emt 00:00:04]} Nf6 {[%clk 01:29:19]} {[%emt
00:01:42]} 2. c4 {[%clk 01:31:17]} {[%emt 00:00:08]} c5 {[%clk 01:29:32]}
{[%emt 00:00:17]} 3. Nf3 {[%clk 01:30:57]} {[%emt 00:00:50]} cxd4 {[%clk
01:25:58]} {[%emt 00:04:05]} 4. Nxd4 {[%clk 01:31:17]} {[%emt 00:00:10]} Nc6
{[%clk 01:26:16]} {[%emt 00:00:12]} 5. Nc3 {[%clk 01:30:50]} {[%emt 00:00:56]}
Qa5 {[%clk 01:21:56]} {[%emt 00:04:50]} 6. Nb3 {[%clk 01:25:48]} {[%emt
00:05:31]} Qc7 {[%clk 01:15:52]} {[%emt 00:06:35]} 7. g3 {[%clk 01:21:38]}
{[%emt 00:04:40]} d6 {[%clk 01:15:24]} {[%emt 00:00:57]} 8. Bf4 {[%clk
01:21:07]} {[%emt 00:01:00]} Nh5 {[%clk 01:11:26]} {[%emt 00:04:27]} 9. Be3
{[%clk 01:15:39]} {[%emt 00:06:00]} g6 {[%clk 01:11:13]} {[%emt 00:00:43]} 10.
Bg2 {[%clk 01:15:31]} {[%emt 00:00:38]} Bg7 {[%clk 01:11:33]} {[%emt 00:00:10]}
11. Rc1 {[%clk 01:15:38]} {[%emt 00:00:23]} O-O {[%clk 01:11:26]} {[%emt
00:00:38]} 12. O-O {[%clk 01:15:40]} {[%emt 00:00:27]} Be6 {[%clk 01:06:41]}
{[%emt 00:05:15]} 13. Nd5 {[%clk 01:03:43]} {[%emt 00:12:27]} Qd7 {[%clk
01:05:34]} {[%emt 00:01:37]} 14. Qd2 {[%clk 01:04:01]} {[%emt 00:00:12]} Bh3
{[%clk 01:02:05]} {[%emt 00:03:59]} 15. Bh6 {[%clk 00:56:01]} {[%emt 00:08:29]}
Bxg2 {[%clk 00:55:03]} {[%emt 00:07:32]} 16. Kxg2 {[%clk 00:56:21]} {[%emt
00:00:10]} e6 {[%clk 00:53:02]} {[%emt 00:02:31]} 17. Bxg7 {[%clk 00:51:27]}
{[%emt 00:05:23]} Kxg7 {[%clk 00:53:27]} {[%emt 00:00:05]} 18. Qc3+ {[%clk
00:50:28]} {[%emt 00:01:29]} Kg8 {[%clk 00:50:21]} {[%emt 00:03:36]} 19. Ne3
{[%clk 00:48:12]} {[%emt 00:02:46]} f5 {[%clk 00:48:07]} {[%emt 00:02:44]} 20.
Rfd1 {[%clk 00:46:24]} {[%emt 00:02:17]} Rad8 {[%clk 00:41:56]} {[%emt
00:06:42]} 21. Nd4 {[%clk 00:30:11]} {[%emt 00:16:43]} Nf6 {[%clk 00:29:14]}
{[%emt 00:13:13]} 22. Nb5 {[%clk 00:21:03]} {[%emt 00:09:39]} d5 {[%clk
00:20:20]} {[%emt 00:09:24]} 23. cxd5 {[%clk 00:19:01]} {[%emt 00:02:31]} exd5
{[%clk 00:20:45]} {[%emt 00:00:06]} 24. Qb3 {[%clk 00:12:15]} {[%emt 00:07:16]}
Qf7 {[%clk 00:15:29]} {[%emt 00:05:45]} 25. Nd4 {[%clk 00:11:37]} {[%emt
00:01:09]} f4 {[%clk 00:15:48]} {[%emt 00:00:12]} 26. gxf4 {[%clk 00:10:06]}
{[%emt 00:02:01]} Nh5 {[%clk 00:15:09]} {[%emt 00:01:08]} 27. f5 {[%clk
00:09:28]} {[%emt 00:01:08]} gxf5 {[%clk 00:12:35]} {[%emt 00:03:04]} 28. Nxc6
{[%clk 00:08:01]} {[%emt 00:01:57]} bxc6 {[%clk 00:12:23]} {[%emt 00:00:42]} 29.
Rxc6 {[%clk 00:08:04]} {[%emt 00:00:27]} f4 {[%clk 00:08:16]} {[%emt 00:04:37]}
30. Nxd5 {[%clk 00:05:04]} {[%emt 00:03:30]} f3+ {[%clk 00:08:24]} {[%emt
00:00:21]} 31. Kh1 {[%clk 00:05:29]} {[%emt 00:00:04]} fxe2 {[%clk 00:06:51]}
{[%emt 00:02:04]} 32. Rg1+ {[%clk 00:04:37]} {[%emt 00:01:22]} Kh8 {[%clk
00:06:19]} {[%emt 00:01:02]} 33. Qc3+ {[%clk 00:04:33]} {[%emt 00:00:34]} Ng7
{[%clk 00:06:45]} {[%emt 00:00:03]} 34. Ne3 {[%clk 00:02:22]} {[%emt 00:02:41]}
Qf3+ {[%clk 00:05:08]} {[%emt 00:02:08]} 35. Ng2 {[%clk 00:02:46]} {[%emt
00:00:06]} Rd3 {[%clk 00:04:21]} {[%emt 00:01:17]} 36. Qc5 {[%clk 00:02:12]}
{[%emt 00:01:04]} Rd1 {[%clk 00:02:20]} {[%emt 00:02:31]} 37. Rc8 {[%clk
00:02:32]} {[%emt 00:00:10]} Rg8 {[%clk 00:01:46]} {[%emt 00:01:04]} 38. Rxg8+
{[%clk 00:00:34]} {[%emt 00:02:28]} Kxg8 {[%clk 00:02:14]} {[%emt 00:00:02]} 39.
Qc8+ {[%clk 00:00:33]} {[%emt 00:00:31]} Kf7 {[%clk 00:02:31]} {[%emt
00:00:12]} 40. Qc7+ {[%clk 00:30:32]} {[%emt 00:00:31]} Kf6 {[%clk 00:31:20]}
{[%emt 00:01:39]} 41. Qa5 {[%clk 00:25:05]} {[%emt 00:05:58]} Ne6 {[%clk
00:28:40]} {[%emt 00:03:11]} 42. Qb4 {[%clk 00:23:15]} {[%emt 00:02:20]} h5
{[%clk 00:25:54]} {[%emt 00:03:16]} 43. a4 {[%clk 00:16:21]} {[%emt 00:07:24]}
a5 {[%clk 00:20:38]} {[%emt 00:05:46]} 44. Qxa5 {[%clk 00:16:26]} {[%emt
00:00:26]} h4 {[%clk 00:21:04]} {[%emt 00:00:04]} 45. Qc3+ {[%clk 00:15:58]}
{[%emt 00:00:57]} Qxc3 {[%clk 00:21:29]} {[%emt 00:00:06]} 46. bxc3 {[%clk
00:16:24]} {[%emt 00:00:04]} Nf4 {[%clk 00:21:18]} {[%emt 00:00:40]} 47. Ne1
{[%clk 00:15:16]} {[%emt 00:01:38]} h3 {[%clk 00:15:42]} {[%emt 00:06:07]} 48.
a5 {[%clk 00:10:30]} {[%emt 00:05:15]} Nd3 {[%clk 00:15:50]} {[%emt 00:00:22]}
49. Nf3 {[%clk 00:10:50]} {[%emt 00:00:10]} Nxf2# {[%clk 00:16:09]} {[%emt
00:00:09]} 0-1